bitfinex/quotes_ETHUSD_20260225
["timestamp","ask_amount","ask_price","bid_price","bid_amount"]
[1772009936702,5.3018747,1912.5,1912.2,1.30735291]
[1772009936909,1.16951622,1912.9,1912.2,1.30735291]
[1772009937061,5.3018747,1912.8,1912.2,1.30735291]
[1772009937412,5.3018747,1912.8,1912.3,0.03040173]
[1772009938599,1.2723178,1912.6,1912.2,1.3368913]
[1772009938798,1.30706695,1912.7,1912.2,1.3368913]
[1772009939097,5.3018747,1912.6,1912.2,1.3368913]
[1772009939967,6.5741925,1912.6,1912.2,1.3368913]
[1772009940486,5.3018747,1912.5,1912.1,1.30844313]
[1772009940659,1.2723178,1912.5,1912.1,1.33620458]
[1772009941685,5.3018747,1912.4,1912.2,0.02684021]
[1772009941988,1.2723178,1912.8,1912.2,0.02684021]
[1772009942193,6.5741925,1912.8,1912.2,0.02684021]
[1772009942704,1.2723178,1912.7,1912.3,1.30732625]
[1772009942879,1.2723178,1912.7,1912.3,1.33324545]
[1772009943205,4.78095545,1912.7,1912.3,1.30732625]
[1772009943371,1.30678793,1913.1,1912.4,15.44953]
[1772009943571,2.59206536,1913.1,1912.4,15.44953]
[1772009943883,1.28527743,1913.1,1912.4,15.44953]
[1772009944398,0.002,1912.8,1912.5,0.01331155]
[1772009944901,0.002,1912.8,1912.4,1.3205109]
[1772009945101,4.78295545,1912.8,1912.4,1.3205109]
[1772009946193,6.06623288,1912.7,1912.3,0.001]
[1772009946507,6.06623288,1912.7,1912.3,1.30832527]
[1772009948196,6.06623288,1912.7,1912.3,1.31865429]
[1772009949202,1.28527743,1912.5,1912.3,0.001]
[1772009949402,4.78095545,1912.6,1912.3,0.001]
[1772009949702,4.78095545,1912.5,1912.3,0.00927102]
[1772009949913,4.78095545,1912.6,1912.3,0.00927102]
[1772009952313,4.78095545,1912.6,1912.3,1.31654237]
[1772009953223,4.78095545,1912.5,1912.4,0.00509675]
[1772009953525,4.28194012,1912.5,1912.3,1.30827135]
[1772009953809,3.10806576,1912.5,1912.3,1.30827135]
[1772009954209,0.002,1912.8,1912.3,1.30827135]
[1772009954388,0.002,1912.8,1912.5,1.30718954]
[1772009954590,0.002,1912.8,1912.5,1.44532347]
[1772009956805,1.28928509,1912.8,1912.3,1.44354017]
[1772009957013,1.28928509,1912.8,1912.3,0.001]
[1772009957545,1.28928509,1912.8,1912.3,1.30831879]
[1772009957941,1.28928509,1912.8,1912.3,1.44208622]
[1772009958752,1.28728509,1912.7,1912.3,0.001]
[1772009959048,1.28728509,1912.7,1912.4,0.001]
[1772009959227,1.28928509,1912.7,1912.4,0.001]
[1772009963242,1.28728509,1912.6,1912.4,0.001]
[1772009966346,1.28947102,1912.7,1912.4,0.001]
[1772009972467,1.28947102,1912.7,1912.5,0.001]
[1772009972964,0.002,1912.6,1912.5,0.001]
[1772009974465,1.33145938,1912.6,1912.5,0.001]
[1772009974968,1.33145938,1912.6,1912.3,0.001]
[1772009976472,1.32945938,1912.5,1912.3,0.001]
[1772009979372,1.32945938,1912.4,1912.3,0.001]
[1772009979575,1.32945938,1912.5,1912.3,0.001]
[1772009986699,1.32945938,1912.5,1912.4,0.001]
[1772009986893,1.33145938,1912.5,1912.4,0.001]
[1772009988913,2.63864892,1912.5,1912.4,0.001]
[1772009989113,1.33145938,1912.5,1912.4,0.001]
[1772009989716,2.63864892,1912.5,1912.4,0.001]
[1772009990914,1.33145938,1912.5,1912.4,0.001]
[1772009993817,0.33145938,1912.5,1912.4,0.001]
[1772009994314,0.002,1912.5,1912.4,0.001]
[1772009994519,0.002,1912.5,1912.4,1.10790432]
[1772009994821,0.002,1912.5,1912.4,0.001]
[1772010000042,1.22276671,1912.5,1912.4,0.001]
[1772010000348,1.22276671,1912.5,1912.2,0.001]
[1772010000505,1.22276671,1912.5,1912.0,1.10388679]
[1772010000940,1.87803715,1912.4,1912.0,1.10388679]
[1772010001142,1.22076671,1912.3,1912.0,1.10388679]
[1772010001438,3.18540368,1912.3,1912.0,1.10388679]
[1772010001641,1.22076671,1912.2,1912.0,0.001]
[1772010002139,1.22076671,1912.1,1912.0,0.001]
[1772010002655,1.22076671,1912.3,1912.0,0.001]
[1772010003664,1.22076671,1912.1,1912.0,0.001]
[1772010005044,1.87803715,1912.1,1911.8,0.001]
[1772010005369,1.22076671,1911.9,1911.8,0.001]
[1772010006241,1.22076671,1911.9,1911.5,1.30783188]
[1772010006482,1.22076671,1911.8,1911.4,1.09716089]
[1772010006640,1.22076671,1911.8,1911.3,1.30898627]
[1772010006845,1.22076671,1911.8,1911.4,1.09696602]
[1772010007046,2.52820356,1912.2,1911.7,1.09696602]
[1772010007348,1.30743685,1912.2,1911.7,1.09696602]
[1772010007540,2.52833674,1912.0,1911.5,1.30787339]
[1772010007745,1.22076671,1911.9,1911.5,2.40364758]
[1772010008175,1.22076671,1911.9,1911.6,1.09577419]
[1772010009248,1.21902568,1911.9,1911.6,1.09577419]
[1772010009447,1.21902568,1911.9,1911.6,2.40357493]
[1772010009680,1.87803715,1912.2,1911.7,1.09503516]
[1772010009987,1.87803715,1912.2,1911.9,1.09503516]
[1772010009988,1.22076671,1912.2,1911.9,1.09503516]
[1772010010395,2.52816362,1912.2,1911.9,1.09503516]
[1772010010695,2.52816362,1912.2,1911.6,1.30780074]
[1772010010696,1.22076671,1912.1,1911.7,1.09383839]
[1772010012170,1.22076671,1912.1,1911.8,1.09259255]
[1772010012372,0.002,1912.1,1911.8,1.09259255]
[1772010014404,1.22276671,1912.1,1911.8,1.09259255]
[1772010017208,1.22076671,1912.0,1911.6,0.001]
[1772010017549,1.22076671,1911.8,1911.6,0.001]
[1772010017905,1.22076671,1911.8,1911.3,1.30898475]
[1772010018132,1.22076671,1911.7,1911.3,0.001]
[1772010019103,1.22076671,1911.6,1911.3,0.001]
[1772010020133,1.22076671,1912.0,1911.5,0.65727044]
[1772010020310,0.002,1912.1,1911.8,1.74053985]
[1772010020512,0.002,1912.1,1911.8,1.08326941]
[1772010020725,1.22076671,1911.9,1911.4,1.08195028]
[1772010021034,1.22076671,1911.9,1911.5,1.08195028]
[1772010021336,1.22076671,1912.0,1911.5,1.08195028]
[1772010021725,1.22076671,1912.0,1911.4,1.96515196]
[1772010021925,1.22076671,1912.0,1911.5,1.08061044]
[1772010023754,1.96486295,1912.0,1911.5,1.08061044]
[1772010023938,1.22076671,1911.9,1911.5,1.08061044]
[1772010024165,1.22276671,1912.1,1911.6,1.73518574]
[1772010024517,2.5302335,1912.1,1911.6,1.73518574]
[1772010024716,1.22076671,1912.0,1911.6,1.0779153]
[1772010024929,1.22076671,1912.0,1911.6,1.0789153]
[1772010025142,0.002,1911.9,1911.6,1.0789153]
[1772010026026,1.21736762,1911.9,1911.6,1.0789153]
[1772010026554,0.002,1911.9,1911.6,1.07595592]
[1772010026861,1.21536762,1911.8,1911.6,0.001]
[1772010027027,1.21536762,1911.8,1911.5,0.001]
[1772010027353,1.21536762,1911.8,1911.5,1.30886808]
[1772010027758,1.21536762,1911.8,1911.5,0.001]
[1772010028622,2.52303976,1911.8,1911.5,0.001]
[1772010028855,1.29650803,1911.6,1911.3,0.001]
[1772010029959,2.60432621,1911.6,1911.3,0.001]
[1772010030179,1.29650803,1911.4,1911.1,0.001]
[1772010030364,1.95377847,1911.3,1911.1,0.001]
[1772010030684,1.29650803,1911.3,1911.1,0.001]
[1772010032685,2.60453549,1911.3,1911.1,0.001]
[1772010032974,1.29650803,1911.3,1911.1,0.001]
[1772010033668,1.29650803,1911.5,1911.1,0.001]
[1772010034674,1.29650803,1911.4,1911.1,0.001]
[1772010036584,1.29650803,1911.2,1911.0,0.001]
[1772010036780,1.30801975,1911.3,1911.0,0.001]
[1772010036951,1.29650803,1911.3,1911.0,0.001]
[1772010037154,2.60451863,1911.3,1911.2,0.001]
[1772010037462,1.29650803,1911.2,1910.4,1.30961855]
[1772010037779,1.29650803,1910.9,1910.4,2.37195938]
[1772010038190,1.29650803,1910.9,1910.4,1.06334083]
[1772010038756,2.60483563,1910.9,1910.4,1.06334083]
[1772010040167,1.29650803,1910.8,1910.4,0.001]
[1772010040571,1.29650803,1910.8,1910.4,1.30962272]
[1772010041295,1.3083276,1910.9,1910.5,1.05799773]
[1772010041296,1.29650803,1910.9,1910.5,1.05799773]
[1772010042189,2.60469893,1911.1,1910.5,1.05799773]
[1772010042363,1.29650803,1911.2,1910.7,1.05649978]
[1772010042897,1.29650803,1911.2,1910.5,1.05500847]
[1772010043199,1.29650803,1911.0,1910.4,0.001]
[1772010044793,1.29650803,1910.8,1910.4,0.001]
[1772010045179,1.29650803,1910.7,1910.4,0.001]
[1772010046382,2.79597699,1911.9,1910.5,1.04896063]
[1772010046583,2.60424459,1911.7,1911.0,2.03620586]
[1772010046786,2.60424459,1911.7,1910.8,2.03620586]
[1772010046787,1.29650803,1911.6,1910.8,2.03620586]
[1772010046984,1.29650803,1911.6,1911.0,0.98724523]
[1772010047166,6.5274543,1911.8,1911.2,1.30807869]
[1772010047495,6.5274543,1911.8,1911.2,2.35703932]
[1772010048087,6.5274543,1911.8,1911.2,1.04896063]
[1772010048673,1.29650803,1911.4,1910.8,0.001]
[1772010048998,1.29650803,1911.4,1910.9,1.04591159]
[1772010049198,1.29650803,1911.4,1911.0,1.30821559]
[1772010049499,0.98924523,1911.7,1911.0,1.30821559]
[1772010049500,2.60630208,1911.7,1911.1,1.04437523]
[1772010050275,1.29850803,1911.7,1911.1,1.04437523]
[1772010050978,1.29650803,1911.6,1911.1,1.04437523]
[1772010051278,1.29650803,1911.6,1911.1,2.35248922]
[1772010052090,1.3078085,1911.6,1911.0,1.30817574]
[1772010052293,1.3078085,1911.6,1910.8,0.001]
[1772010052294,1.29650803,1911.5,1910.8,1.30933808]
[1772010052595,1.29650803,1911.5,1910.8,1.30935123]
[1772010053296,1.29650803,1911.3,1910.8,0.001]
[1772010055207,1.29650803,1911.5,1910.8,1.03765292]
[1772010055415,1.29650803,1911.4,1910.8,0.001]
[1772010056921,1.29650803,1911.4,1910.7,0.001]
[1772010057422,1.30801025,1911.3,1910.7,0.001]
[1772010057628,1.18499113,1911.2,1910.7,0.001]
[1772010059816,1.18499113,1911.0,1910.7,0.001]
[1772010061507,1.18499113,1911.0,1910.8,0.001]
[1772010061930,2.49327518,1910.9,1910.8,0.001]
[1772010062228,1.30824689,1911.0,1910.8,0.001]
[1772010062740,2.49323802,1911.0,1910.8,0.001]
[1772010063615,1.18499113,1910.9,1910.8,0.001]
[1772010064509,1.18499113,1911.1,1910.8,0.001]
[1772010064710,1.30801025,1911.3,1910.8,0.001]
[1772010064711,2.49300138,1911.3,1910.8,0.001]
[1772010064925,2.49300138,1911.3,1910.8,1.01951345]
[1772010065528,1.18499113,1911.3,1910.8,1.01951345]
[1772010065722,2.49486452,1911.5,1910.8,1.01951345]
[1772010065913,1.30988169,1911.5,1910.8,1.01951345]
[1772010066321,0.002,1911.5,1910.8,1.01951345]
[1772010066619,0.002,1911.5,1911.0,1.01459321]
[1772010067127,1.18699113,1911.5,1910.8,2.32389978]
[1772010068248,1.18699113,1911.5,1910.9,1.0126373]
[1772010068842,1.30794182,1911.4,1910.9,2.32090597]
[1772010069630,1.30794182,1911.4,1910.8,1.30930059]
[1772010069935,1.18499113,1911.3,1910.8,1.30930059]
[1772010070140,1.18499113,1911.3,1910.8,2.3180264]
[1772010070341,0.002,1911.5,1910.9,1.00872581]
[1772010070940,0.002,1911.5,1911.1,1.00677316]
[1772010071355,0.002,1911.5,1911.2,1.00677316]
[1772010072356,1.18699113,1911.5,1911.0,1.00482234]
[1772010072654,1.18699113,1911.5,1910.8,2.31216944]
[1772010072840,1.30794182,1911.4,1910.8,2.31216944]
[1772010073043,1.18499113,1911.3,1910.8,2.31216944]
[1772010073841,1.18499113,1911.3,1910.9,0.001]
[1772010074933,2.49305986,1911.3,1910.9,0.001]
[1772010075358,1.18499113,1911.3,1910.9,0.001]
[1772010075658,0.002,1911.4,1910.9,0.99804426]
[1772010077041,0.002,1911.4,1911.1,0.99509822]
[1772010077237,0.002,1911.5,1911.1,0.99309822]
[1772010079769,0.002,1911.5,1911.1,2.30124433]
[1772010080062,0.002,1911.5,1911.2,0.98734545]
[1772010082343,0.002,1911.8,1911.4,0.98347857]
[1772010082543,0.008,1911.8,1911.4,0.98347857]
[1772010082950,1.19099113,1911.7,1911.1,2.28964748]
[1772010084469,1.18499113,1911.6,1911.1,2.28964748]
[1772010085051,1.18499113,1911.6,1911.1,1.30810101]
[1772010085262,1.18499113,1911.6,1911.1,2.28596371]
[1772010085848,1.23906,1911.4,1910.9,1.3092784]
[1772010086451,5.23270317,1911.8,1911.4,1.24451471]
[1772010086452,0.002,1911.8,1911.4,1.24451471]
[1772010087268,0.002,1911.6,1911.4,1.24451471]
[1772010087470,0.002,1911.8,1911.3,1.24451471]
[1772010087671,0.002,1911.7,1911.3,1.24451471]
[1772010087867,0.002,1911.7,1911.4,1.24451471]
[1772010088069,0.002,1911.9,1911.4,1.25852597]
[1772010088456,0.002,1911.9,1911.6,1.25852597]
[1772010089143,0.004,1911.8,1911.5,1.30787339]
[1772010089344,0.004,1911.8,1911.4,6.49001956]
[1772010089345,0.004,1911.7,1911.4,2.56641241]
[1772010089677,1.23042406,1911.8,1911.2,2.5675446]
[1772010089975,1.22642406,1911.8,1911.2,2.5675446]
[1772010090147,1.23042406,1911.7,1911.2,2.5675446]
[1772010090355,1.22642406,1911.7,1911.2,0.001]
[1772010090852,1.22642406,1911.7,1911.2,1.25952597]
[1772010091258,1.23042406,1911.6,1911.2,0.001]
[1772010091458,1.22642406,1911.6,1911.0,0.001]
[1772010091687,0.003,1911.5,1911.0,2.56774096]
[1772010091982,2.5341624,1911.7,1911.0,2.56774096]
[1772010092187,0.003,1911.6,1911.0,2.56774096]
[1772010092351,1.22942406,1911.6,1911.0,2.56774096]
[1772010095799,1.22942406,1911.6,1911.1,1.25852597]
[1772010096098,0.003,1911.5,1911.1,1.25852597]
[1772010096294,2.53409222,1911.8,1911.0,1.30921499]
[1772010096295,1.22942406,1911.7,1911.0,1.30921499]
[1772010096499,1.22642406,1911.7,1911.0,0.001]
[1772010097091,1.22642406,1911.5,1911.0,1.30921547]
[1772010099102,1.22642406,1911.5,1911.1,0.001]
[1772010099286,1.22942406,1911.4,1911.1,0.001]
[1772010100107,0.003,1911.3,1911.1,0.001]
[1772010100805,1.22942406,1911.2,1911.0,0.001]
[1772010100978,1.22642406,1911.2,1911.0,0.001]
[1772010102688,1.22642406,1911.4,1911.0,0.001]
[1772010102894,1.22942406,1911.4,1911.0,0.001]
[1772010103306,2.53443431,1911.3,1911.0,0.001]
[1772010106210,1.22642406,1911.2,1911.0,0.001]
[1772010107382,1.30798604,1911.4,1911.0,0.001]
[1772010107588,0.003,1911.3,1911.0,1.25952597]
[1772010108110,0.003,1911.2,1911.0,0.001]
[1772010108614,0.003,1911.2,1911.0,1.25952597]
[1772010108819,0.002,1911.6,1911.1,1.25852597]
[1772010110707,0.002,1911.6,1911.3,1.25852597]
[1772010111087,1.22842406,1911.6,1911.1,2.5666381]
[1772010111292,0.002,1911.6,1911.2,1.25852597]
[1772010113817,0.002,1911.6,1911.2,2.56659441]
[1772010114018,0.002,1911.6,1911.3,1.25852597]
[1772010114716,1.22842406,1911.6,1911.2,1.30806844]
[1772010115019,1.22842406,1911.6,1911.2,2.56659441]
[1772010115617,1.22842406,1911.6,1911.2,1.25852597]
[1772010115809,1.22842406,1911.6,1911.2,2.56660122]
[1772010116123,1.22842406,1911.6,1911.2,3.22428334]
[1772010117229,0.002,1911.6,1911.2,3.12716045]
[1772010117603,0.002,1911.6,1911.2,2.46947833]
[1772010118200,1.21615632,1911.6,1911.2,2.46947833]
[1772010119327,1.21615632,1911.6,1911.2,3.12716045]
[1772010119500,1.21615632,1911.6,1911.3,1.16140308]
[1772010120005,1.21615632,1911.6,1911.2,3.12716045]
[1772010120207,1.21615632,1911.6,1911.2,3.1271623]
[1772010120719,1.21615632,1911.6,1911.3,1.16140308]
[1772010121023,0.002,1911.6,1911.4,1.8190852]
[1772010122011,0.002,1911.9,1911.5,3.12695859]
[1772010122528,0.002,1911.9,1911.7,1.16140308]
[1772010123840,0.002,1911.9,1911.5,3.12695859]
[1772010124136,0.002,1911.6,1911.4,1.30792991]
[1772010124644,0.002,1911.6,1911.3,2.47036077]
[1772010125202,0.002,1911.6,1911.3,1.16240308]
[1772010125432,1.21615632,1911.6,1911.3,0.001]
[1772010126004,2.52202971,1911.5,1911.3,0.001]
[1772010126204,1.21415632,1911.4,1911.1,0.001]
[1772010128048,2.52216657,1911.3,1911.1,0.001]
[1772010128210,1.21415632,1911.3,1911.1,0.001]
[1772010128837,2.52203437,1911.5,1911.1,0.001]
[1772010129821,1.21415632,1911.5,1911.1,0.001]
[1772010130641,2.52209265,1911.5,1911.1,0.001]
[1772010131644,2.52209265,1911.5,1911.1,1.16240308]
[1772010131645,1.21415632,1911.5,1911.1,1.16240308]
[1772010132859,1.21415632,1911.4,1911.1,0.001]
[1772010135876,1.21415632,1911.3,1911.1,0.001]
[1772010136170,1.21415632,1911.3,1911.2,0.001]
[1772010136540,1.21615632,1911.3,1911.2,0.001]
[1772010136735,0.002,1911.3,1911.2,0.001]
[1772010136965,0.002,1911.6,1911.2,1.16240308]
[1772010138076,0.002,1911.6,1911.3,2.46941333]
[1772010138441,0.002,1911.8,1911.4,1.16140308]
[1772010138640,1.21815632,1911.8,1911.4,1.16140308]
[1772010138856,1.21615632,1911.7,1911.2,2.47045888]
[1772010139076,1.21415632,1911.7,1911.2,2.47045888]
[1772010139261,1.21415632,1911.7,1911.3,1.16140308]
[1772010141167,1.21415632,1911.7,1911.3,2.46939126]
[1772010144084,0.002,1911.6,1911.3,2.46939126]
[1772010144555,1.21415632,1911.7,1911.3,2.46939126]
[1772010144755,0.002,1911.6,1911.3,2.46939126]
[1772010145477,1.21415632,1911.7,1911.3,2.46939126]
[1772010145678,0.002,1911.6,1911.3,2.46939126]
[1772010148480,1.22082135,1911.5,1911.4,0.001]
[1772010148647,1.22282135,1911.5,1911.4,0.001]
[1772010148852,0.002,1911.5,1911.4,0.001]
[1772010149489,0.002,1911.7,1911.5,1.15603797]
[1772010150161,0.002,1911.7,1911.4,0.001]
[1772010150793,1.22282135,1911.7,1911.4,0.001]
[1772010154598,1.22082135,1911.6,1911.4,0.001]
[1772010155494,1.22082135,1911.5,1911.2,0.001]
[1772010156689,2.53055879,1911.7,1911.2,2.46511107]
[1772010156882,1.22082135,1911.6,1911.2,2.46511107]
[1772010157186,1.22082135,1911.6,1911.2,0.001]
[1772010160782,1.22082135,1911.5,1911.2,0.001]
[1772010161183,1.22082135,1911.5,1911.3,0.001]
[1772010161383,1.22282135,1911.5,1911.3,0.001]
[1772010161884,0.002,1911.5,1911.3,0.001]
[1772010162089,0.002,1911.5,1911.3,1.15703797]
[1772010162477,0.002,1911.5,1911.4,1.81368289]
[1772010162678,0.002,1911.5,1911.4,1.15603797]
[1772010163112,0.002,1911.5,1911.4,2.46397979]
[1772010163590,0.002,1911.5,1911.4,1.15603797]
[1772010163775,0.002,1911.5,1911.3,1.30895267]
[1772010163974,0.002,1911.5,1911.3,2.46499064]
[1772010164812,0.002,1911.5,1911.4,1.15603797]
[1772010165010,0.002,1911.5,1911.3,2.46499064]
[1772010168913,0.002,1911.5,1911.3,0.001]
[1772010169614,0.002,1911.5,1911.3,1.15703797]
[1772010169913,1.22282135,1911.5,1911.3,0.001]
[1772010172301,1.30987902,1911.5,1911.3,0.001]
[1772010172504,1.22082135,1911.4,1911.3,0.001]
[1772010172998,1.22282135,1911.4,1911.3,0.001]
[1772010174092,0.002,1911.5,1911.4,1.15603797]
[1772010174698,0.002,1911.7,1911.5,1.15603797]
[1772010175806,0.002,1911.9,1911.8,1.18326852]
[1772010176322,0.002,1912.1,1911.9,1.18326852]
[1772010176506,0.002,1912.2,1912.1,1.18326852]
[1772010176899,0.002,1912.4,1912.1,1.18326852]
[1772010177103,0.002,1912.4,1911.7,1.30771028]
[1772010177104,0.002,1912.3,1912.2,2.1696543]
[1772010177610,0.002,1912.4,1912.2,2.1696543]
[1772010178000,0.002,1912.4,1912.2,1.18326852]
[1772010179423,0.002,1912.5,1912.3,1.18326852]
[1772010179609,0.004,1912.5,1912.3,1.18326852]
[1772010181323,0.004,1912.5,1912.3,2.49058886]
[1772010181524,0.004,1912.5,1912.2,1.30736105]
[1772010181726,0.002,1912.4,1912.1,2.49067567]
[1772010181929,0.002,1912.5,1912.2,1.18326852]
[1772010182700,0.002,1912.6,1912.3,1.18326852]
[1772010182906,1.1224938,1913.1,1912.5,1.18326852]
[1772010183221,1.1224938,1913.1,1912.6,2.49038971]
[1772010183814,2.42928192,1913.1,1912.6,2.49038971]
[1772010184213,1.1224938,1913.1,1912.6,2.49038971]
[1772010184412,2.42928304,1913.1,1912.6,1.18326852]
[1772010184905,1.30674013,1913.2,1912.6,1.18326852]
[1772010185130,0.002,1912.8,1912.6,1.18326852]
[1772010185429,0.002,1912.9,1912.5,1.18326852]
[1772010187931,0.002,1912.9,1912.6,2.49038971]
[1772010188129,0.002,1912.9,1912.7,1.18326852]
[1772010189928,0.002,1912.9,1912.6,2.49038971]
[1772010190306,1.1244938,1912.9,1912.4,2.49052128]
[1772010190726,1.1244938,1912.9,1912.5,1.18326852]
[1772010193029,1.1224938,1912.8,1912.3,1.18326852]
[1772010194916,1.1224938,1912.8,1912.2,1.30739462]
[1772010194917,1.1224938,1912.6,1912.1,1.18326852]
[1772010196835,1.1224938,1912.8,1912.1,1.18326852]
[1772010197037,2.42948408,1912.8,1912.3,1.18326852]
[1772010197218,1.1224938,1912.7,1912.4,0.001]
[1772010198221,1.30899028,1912.8,1912.4,1.18426852]
[1772010198546,2.43148408,1912.8,1912.4,1.18426852]
[1772010200039,1.1224938,1912.7,1912.4,1.18426852]
[1772010200240,1.1224938,1912.7,1912.4,0.001]
[1772010201340,2.42955339,1912.7,1912.4,0.001]
[1772010202218,1.1224938,1912.7,1912.4,0.001]
[1772010202413,1.1224938,1912.7,1912.4,1.18426852]
[1772010203029,0.002,1912.8,1912.4,1.18426852]
[1772010203229,0.002,1912.8,1912.5,1.18326852]
[1772010203425,0.002,1912.8,1912.7,1.18326852]
[1772010203643,0.002,1912.9,1912.7,1.18326852]
[1772010204221,0.002,1913.1,1912.9,1.18326852]
[1772010204622,0.002,1913.1,1912.6,1.30712119]
[1772010204623,1.1224938,1913.0,1912.6,0.98529278]
[1772010204835,1.1224938,1913.0,1912.4,1.30825751]
[1772010205034,1.1224938,1913.0,1912.4,2.49152603]
[1772010205274,1.1244938,1913.1,1912.7,1.18326852]
[1772010205638,1.1244938,1913.1,1912.8,2.46599254]
[1772010205823,0.002,1913.1,1912.9,1.15900802]
[1772010207243,0.002,1913.1,1912.7,2.46601285]
[1772010208137,0.002,1913.1,1912.8,1.08398386]
[1772010210037,0.002,1913.0,1912.8,1.08398386]
[1772010210350,0.002,1913.1,1912.8,2.39096709]
[1772010210844,0.002,1913.1,1912.8,1.08398386]
[1772010211145,1.16901654,1913.1,1912.5,2.3921242]
[1772010212048,1.16901654,1913.1,1912.6,1.08398386]
[1772010212260,0.002,1913.1,1912.8,1.08398386]
[1772010212836,1.16901654,1913.1,1912.8,1.08398386]
[1772010213755,0.002,1913.1,1912.8,1.08398386]
[1772010214460,0.002,1913.1,1913.0,1.08398386]
[1772010214633,0.002,1913.3,1913.0,1.08398386]
[1772010217283,0.002,1913.3,1913.1,1.08398386]
[1772010217775,1.16901654,1913.3,1912.9,1.08398386]
[1772010218545,1.16701654,1913.2,1912.7,1.08398386]
[1772010221060,1.16701654,1913.2,1912.8,1.30698452]
[1772010221252,1.16701654,1913.2,1912.8,2.39096838]
[1772010221450,1.16701654,1913.2,1912.9,1.08398386]
[1772010222058,1.16701654,1913.2,1912.8,1.30698452]
[1772010222253,1.16701654,1913.2,1912.7,6.31219162]
[1772010222254,1.30671617,1913.2,1912.7,2.39103671]
[1772010222460,1.16701654,1913.1,1912.8,0.001]
[1772010223870,2.47386442,1913.0,1912.8,0.001]
[1772010224275,1.16701654,1913.0,1912.8,0.001]
[1772010224474,1.30875576,1913.2,1912.8,0.001]
[1772010224657,1.16701654,1913.1,1912.8,0.001]
[1772010225675,1.16701654,1912.9,1912.5,2.39216951]
[1772010226069,2.47393405,1912.9,1912.5,1.08498386]
[1772010226272,1.16701654,1912.8,1912.5,1.08498386]
[1772010226466,1.16701654,1912.8,1912.5,2.39216007]
[1772010226797,1.16701654,1913.0,1912.6,1.08398386]
[1772010227084,2.47386504,1913.0,1912.6,1.08398386]
[1772010227309,1.16701654,1912.9,1912.5,0.001]
[1772010227461,1.16701654,1912.8,1912.5,0.001]
[1772010227669,1.16701654,1912.8,1912.4,0.001]
[1772010227670,1.16701654,1912.5,1912.4,0.001]
[1772010228380,2.47397583,1912.9,1912.4,1.08498386]
[1772010228579,1.16701654,1913.1,1912.7,1.08398386]
[1772010228903,1.30871837,1913.2,1912.8,1.08398386]
[1772010229077,0.002,1913.2,1912.8,1.08398386]
[1772010229264,1.3087244,1913.2,1912.8,1.08398386]
[1772010229976,0.002,1913.2,1912.8,1.08398386]
[1772010230166,1.30872209,1913.2,1912.8,1.08398386]
[1772010230367,1.30872209,1913.2,1912.8,2.39096134]
[1772010230368,1.16901654,1913.2,1912.8,2.39096134]
[1772010230866,1.16701654,1913.1,1912.6,1.08398386]
[1772010231462,1.30871559,1913.2,1912.6,1.08398386]
[1772010231666,0.002,1913.2,1912.6,1.08398386]
[1772010232995,1.16701654,1913.1,1912.6,2.39105728]
[1772010234004,1.16701654,1913.1,1912.6,1.08398386]
[1772010234414,1.16701654,1913.1,1912.6,2.39109038]
[1772010234995,2.47581217,1913.1,1912.6,2.39209038]
[1772010235397,1.11992051,1913.0,1912.6,0.001]
[1772010237477,1.11992051,1912.8,1912.6,0.001]
[1772010239079,2.42676839,1913.0,1912.6,0.001]
[1772010239703,0.002,1913.1,1912.7,1.1218443]
[1772010240788,1.12192051,1913.1,1912.7,1.1218443]
[1772010241911,1.12192051,1913.1,1912.7,2.42886568]
[1772010242618,1.11992051,1913.0,1912.6,0.001]
[1772010242787,0.002,1913.1,1912.7,1.1218443]
[1772010243221,1.11992051,1913.0,1912.6,0.001]
[1772010243920,1.3069162,1912.9,1912.6,0.001]
[1772010244090,1.3069162,1912.9,1912.4,0.001]
[1772010244091,1.11992051,1912.8,1912.4,0.001]
[1772010246022,2.42711005,1912.5,1912.4,0.001]
[1772010246244,1.30712119,1912.6,1912.4,0.001]
[1772010246593,2.42702894,1912.7,1912.4,0.001]
[1772010247724,1.11992051,1912.7,1912.5,0.001]
[1772010248035,2.42689145,1912.9,1912.5,0.001]
[1772010248215,2.42689145,1912.9,1912.5,1.1228443]
[1772010248890,2.42689145,1912.9,1912.5,0.001]
[1772010249097,1.11992051,1912.8,1912.5,0.001]
[1772010250518,1.30705285,1912.7,1912.5,0.001]
[1772010251494,2.42697336,1912.7,1912.5,0.001]
[1772010252627,10.202,1913.3,1912.6,31.1218443]
[1772010252919,1.11992051,1914.2,1913.2,1.1218443]
[1772010253119,1.11992051,1914.1,1913.2,1.1218443]
[1772010254616,0.008,1914.0,1913.4,1.1218443]
[1772010254817,1.11992051,1914.3,1913.4,1.1218443]
[1772010255012,1.12792051,1914.2,1913.4,0.88963236]
[1772010257002,1.12792051,1914.2,1913.4,0.8842648]
[1772010257200,1.12792051,1914.2,1913.5,1.3065064]
[1772010257396,1.11992051,1914.2,1913.4,0.8842648]
[1772010257592,1.12792051,1914.1,1913.2,2.42024731]
[1772010259021,1.11992051,1913.9,1913.2,2.42024731]
[1772010260228,1.30623438,1913.9,1913.2,2.42024731]
[1772010260436,1.11992051,1913.8,1913.2,1.30665193]
[1772010260735,1.12792051,1913.8,1913.0,1.10927003]
[1772010260940,1.11992051,1913.6,1913.0,2.41606965]
[1772010261442,0.008,1913.5,1913.0,1.30679962]
[1772010261602,1.12792051,1913.5,1913.0,1.30679962]
[1772010262330,2.42619875,1913.9,1913.1,1.10780085]
[1772010262506,1.12792051,1913.8,1913.1,1.10780085]
[1772010264530,1.11992051,1913.8,1913.2,1.30671126]
[1772010264727,1.11992051,1913.7,1913.2,1.30671126]
[1772010264928,1.12792051,1913.6,1913.1,1.30672684]
[1772010265224,1.11992051,1913.6,1913.1,1.30672684]
[1772010265431,2.4262306,1913.8,1913.2,1.10343224]
[1772010265927,1.20781427,1913.7,1913.2,1.10343224]
[1772010266316,1.20781427,1913.6,1913.0,2.40806453]
[1772010266628,1.21581427,1913.6,1912.9,1.30686405]
[1772010266844,0.008,1913.6,1913.2,1.10126037]
[1772010269010,0.008,1913.6,1913.3,1.30664297]